fUST/lending_fUST_20250206
["ID","MTS","AMOUNT","RATE_DAILY","PERIOD"]
[351768554,1738782635202,-500.0,0.00014483,2]
[351768556,1738782635211,-839.23,0.00014483,2]
[351768558,1738782635220,-500.0,0.00014483,2]
[351768560,1738782635230,-500.0,0.00014483,2]
[351768562,1738782635239,-500.92265803,0.00014483,2]
[351768564,1738782635248,-500.0,0.00014483,2]
[351768566,1738782635259,-500.0,0.00014483,2]
[351768568,1738782635268,-500.0,0.00014483,2]
[351768570,1738782635277,-1050.91,0.00014483,2]
[351768572,1738782635287,-1050.91,0.00014483,2]
[351768574,1738782635297,-1050.91,0.00014483,2]
[351768576,1738782635306,-1050.91,0.00014483,2]
[351768578,1738782635316,-1050.91,0.00014483,2]
[351768580,1738782635326,-1050.91,0.00014483,2]
[351768582,1738782635335,-1050.91,0.00014483,2]
[351768584,1738782635345,-1050.91,0.00014483,2]
[351768586,1738782635354,-1050.91,0.00014483,2]
[351768588,1738782635364,-1050.91,0.00014483,2]
[351768590,1738782635373,-1050.91,0.00014483,2]
[351768592,1738782635382,-1050.91,0.00014483,2]
[351768594,1738782635391,-1050.91,0.00014483,2]
[351768596,1738782635401,-1051.13415099,0.00014483,2]
[351768598,1738782635410,-500.0,0.00014483,2]
[351768600,1738782635420,-500.0,0.00014483,2]
[351768602,1738782635430,-500.0,0.00014483,2]
[351768604,1738782635439,-500.0,0.00014483,2]
[351768606,1738782635449,-502.08847184,0.00014483,2]
[351768608,1738782635459,-500.0,0.00014483,2]
[351768610,1738782635469,-2770.74,0.00014483,2]
[351768612,1738782635478,-500.0,0.00014483,2]
[351768614,1738782635487,-1716.18,0.00014483,2]
[351768616,1738782635496,-1716.18,0.00014483,2]
[351768618,1738782635505,-1716.18,0.00014483,2]
[351768620,1738782635515,-500.0,0.00014483,2]
[351768622,1738782635524,-1716.18,0.00014483,2]
[351768624,1738782635534,-500.0,0.00014483,2]
[351768626,1738782635543,-500.0,0.00014483,2]
[351768628,1738782635552,-500.0,0.00014483,2]
[351768630,1738782635562,-1056.21,0.00014483,2]
[351768632,1738782635571,-500.0,0.00014483,2]
[351768634,1738782635581,-500.0,0.00014483,2]
[351768636,1738782635591,-726.98,0.00014483,2]
[351768638,1738782635600,-312.2834907,0.00014483,2]
[351768640,1738782635610,-3867.41,0.00014483,2]
[351768642,1738782635619,-500.0,0.00014483,2]
[351768644,1738782635628,-500.0,0.00014483,2]
[351768646,1738782635638,-500.0,0.00014483,2]
[351768648,1738782635647,-500.0,0.00014483,2]
[351768650,1738782635656,-3094.25,0.00014483,2]
[351768652,1738782635665,-695.53,0.00014483,2]
[351768654,1738782635675,-500.0,0.00014483,2]
[351768656,1738782635686,-500.0,0.00014483,2]
[351768658,1738782635695,-508.79528538,0.00014483,2]
[351768660,1738782635705,-500.0,0.00014483,2]
[351768662,1738782635716,-500.0,0.00014483,2]
[351768664,1738782635728,-500.0,0.00014483,2]
[351768666,1738782635737,-500.0,0.00014483,2]
[351768668,1738782635746,-500.0,0.00014483,2]
[351768670,1738782635755,-902.89,0.00014483,2]
[351768672,1738782635765,-501.71599731,0.00014483,2]
[351768674,1738782635775,-502.32749798,0.00014483,2]
[351768676,1738782635784,-500.0,0.00014483,2]
[351768678,1738782635793,-500.0,0.00014483,2]
[351768680,1738782635803,-500.0,0.00014483,2]
[351768682,1738782635812,-713.65,0.00014483,2]
[351768684,1738782635822,-500.0,0.00014483,2]
[351768686,1738782635831,-500.0,0.00014483,2]
[351768688,1738782635840,-500.0,0.00014483,2]
[351768690,1738782635850,-500.0,0.00014483,2]
[351768692,1738782635860,-500.0,0.00014483,2]
[351768694,1738782635869,-500.0,0.00014483,2]
[351768696,1738782635878,-500.0,0.00014483,2]
[351768698,1738782635888,-500.0,0.00014483,2]
[351768700,1738782635900,-500.0,0.00014483,2]
[351768702,1738782635909,-560.15,0.00014483,2]
[351768704,1738782635919,-599.77,0.00014483,2]
[351768706,1738782635929,-1273.55,0.00014483,2]
[351768708,1738782635944,-500.0,0.00014483,2]
[351768710,1738782635955,-160.82808555,0.00014483,2]
[351768712,1738782635964,-500.0,0.00014483,2]
[351768714,1738782635975,-500.0,0.00014483,2]
[351768716,1738782635986,-528.47,0.00014483,2]
[351768718,1738782635995,-500.0,0.00014483,2]
[351768720,1738782636007,-906.15,0.00014483,2]
[351768722,1738782636017,-500.0,0.00014483,2]
[351768724,1738782636027,-652.99,0.00014483,2]
[351768726,1738782636037,-8445.46,0.00014483,2]
[351768728,1738782636047,-500.0,0.00014483,2]
[351768745,1738782636193,-506.00447112,0.00014483,2]
[351768747,1738782636203,-500.52785161,0.00014483,2]
[351768749,1738782636213,-1501.63,0.00014483,2]
[351768751,1738782636222,-500.0,0.00014483,2]
[351768753,1738782636231,-500.0,0.00014483,2]
[351768755,1738782636241,-500.0,0.00014483,2]
[351768757,1738782636250,-1677.82,0.00014483,2]
[351768759,1738782636263,-500.0,0.00014483,2]
[351768761,1738782636272,-500.0,0.00014483,2]
[351768763,1738782636281,-635.5,0.00014483,2]
[351768765,1738782636291,-500.0,0.00014483,2]
[351768767,1738782636300,-2896.01,0.00014483,2]
[351768769,1738782636309,-502.19630505,0.00014483,2]
[351768771,1738782636319,-501.18248744,0.00014483,2]
[351768773,1738782636329,-500.0,0.00014483,2]
[351768775,1738782636338,-222.87789705,0.00014483,2]
[351768777,1738782636348,-511.78,0.00014483,2]
[351768779,1738782636357,-500.0,0.00014483,2]
[351768781,1738782636366,-500.0,0.00014483,2]
[351768783,1738782636376,-500.0,0.00014483,2]
[351768786,1738782636385,-500.0,0.00014483,2]
[351768787,1738782636394,-512.66205982,0.00014483,2]
[351768789,1738782636404,-1718.43,0.00014483,2]
[351768791,1738782636413,-500.0,0.00014483,2]
[351768794,1738782636422,-743.26,0.00014483,2]
[351768795,1738782636432,-500.0,0.00014483,2]
[351768798,1738782636441,-500.0,0.00014483,2]
[351768800,1738782636451,-515.51,0.00014483,2]
[351768802,1738782636461,-500.0,0.00014483,2]
[351768803,1738782636470,-1151.02,0.00014483,2]
[351768805,1738782636482,-1362.74,0.00014483,2]
[351768807,1738782636492,-500.0,0.00014483,2]
[351768810,1738782636501,-500.0,0.00014483,2]
[351768812,1738782636512,-1686.85,0.00014483,2]
[351768814,1738782636521,-500.0,0.00014483,2]
[351768816,1738782636530,-500.0,0.00014483,2]
[351768818,1738782636540,-500.0,0.00014483,2]
[351768819,1738782636549,-500.0,0.00014483,2]
[351768821,1738782636559,-500.0,0.00014483,2]
[351768823,1738782636568,-500.0,0.00014483,2]
[351768825,1738782636578,-500.0,0.00014483,2]
[351768827,1738782636587,-500.0,0.00014483,2]
[351768829,1738782636597,-500.0,0.00014483,2]
[351768831,1738782636607,-496.7,0.00014483,2]
[351768833,1738782636616,-500.0,0.00014483,2]
[351768835,1738782636626,-647.52,0.00014483,2]
[351768837,1738782636635,-500.0,0.00014483,2]
[351768839,1738782636644,-500.0,0.00014483,2]
[351768841,1738782636654,-507.25171621,0.00014483,2]
[351768843,1738782636663,-500.0,0.00014483,2]
[351768845,1738782636672,-500.0,0.00014483,2]
[351768847,1738782636682,-328.23527834,0.00014483,2]
[351768849,1738782636691,-562.71,0.00014483,2]
[351768851,1738782636701,-500.30604606,0.00014483,2]
[351768853,1738782636711,-500.0,0.00014483,2]
[351768855,1738782636721,-500.98027932,0.00014483,2]
[351768857,1738782636731,-500.0,0.00014483,2]
[351768859,1738782636741,-500.0,0.00014483,2]
[351768861,1738782636750,-500.0,0.00014483,2]
[351768864,1738782636763,-500.0,0.00014483,2]
[351768865,1738782636772,-526.88564986,0.00014483,2]
[351768868,1738782636782,-8186.23,0.00014483,2]
[351768869,1738782636792,-500.0,0.00014483,2]
[351768872,1738782636802,-500.0,0.00014483,2]
[351768874,1738782636811,-500.0,0.00014483,2]
[351768876,1738782636820,-505.83065756,0.00014483,2]
[351768878,1738782636830,-987.81,0.00014483,2]
[351768880,1738782636839,-826.85,0.00014483,2]
[351768882,1738782636849,-500.0,0.00014483,2]
[351768884,1738782636858,-500.0,0.00014483,2]
[351768885,1738782636867,-326.52367571,0.00014483,2]
[351768888,1738782636876,-500.0,0.00014483,2]
[351768889,1738782636886,-1499.9,0.00014483,2]
[351768892,1738782636897,-500.0,0.00014483,2]
[351768894,1738782636907,-500.0,0.00014483,2]
[351768896,1738782636917,-500.0,0.00014483,2]
[351768898,1738782636927,-500.0,0.00014483,2]
[351768900,1738782636937,-500.0,0.00014483,2]
[351768902,1738782636950,-500.0,0.00014483,2]
[351768904,1738782636960,-500.0,0.00014483,2]
[351768906,1738782636970,-500.0,0.00014483,2]
[351768908,1738782636980,-500.0,0.00014483,2]
[351768910,1738782636991,-683.63,0.00014483,2]
[351768912,1738782637001,-610.12909115,0.00014483,2]
[351768914,1738782637015,-500.0,0.00014483,2]
[351768916,1738782637024,-500.0,0.00014483,2]
[351768918,1738782637035,-500.0,0.00014483,2]
[351768919,1738782637044,-500.0,0.00014483,2]
[351768922,1738782637053,-500.0,0.00014483,2]
[351768923,1738782637062,-500.0,0.00014483,2]
[351768925,1738782637072,-500.0,0.00014483,2]
[351768927,1738782637081,-2953.29,0.00014483,2]
[351768929,1738782637091,-500.0,0.00014483,2]
[351768931,1738782637101,-500.0,0.00014483,2]
[351768933,1738782637110,-500.0,0.00014483,2]
[351768935,1738782637120,-500.0,0.00014483,2]
[351768937,1738782637130,-559.99,0.00014483,2]
[351768939,1738782637140,-500.0,0.00014483,2]
[351768942,1738782637150,-855.46,0.00014484,2]
[351768943,1738782637160,-855.46,0.00014484,2]
[351768945,1738782637170,-855.46,0.00014484,2]
[351768947,1738782637180,-855.46,0.00014484,2]
[351768949,1738782637190,-855.46,0.00014484,2]
[351768951,1738782637200,-855.46,0.00014484,2]
[351768953,1738782637209,-272.42245413,0.00014484,2]
[351768958,1738782637254,-629.12,0.00014483,2]
[351768960,1738782637266,-583.03754587,0.00014484,2]
[351768962,1738782637276,-855.46,0.00014484,2]
[351768964,1738782637285,-855.46,0.00014484,2]
[351768966,1738782637295,-34.12789369,0.00014484,2]
[351769088,1738782638196,-463.60001,0.00014399,2]
[351769090,1738782638209,-36.39999,0.00014399,2]
[351769092,1738782638218,-500.0,0.00014483,2]
[351769094,1738782638229,-500.0,0.00014483,2]
[351769096,1738782638239,-821.33210631,0.00014484,2]
[351769098,1738782638248,-855.46,0.00014484,2]
[351769101,1738782638260,-692.98947423,0.00014484,2]
[351769103,1738782638272,-162.47052577,0.00014484,2]
[351769105,1738782638282,-229.56092183,0.00014484,2]
[351769107,1738782638294,-625.89907817,0.00014484,2]
[351769109,1738782638304,-500.0,0.00014484,2]
[351769111,1738782638315,-500.0,0.00014484,2]
[351769113,1738782638325,-500.0,0.00014484,2]
[351769115,1738782638336,-500.0,0.00014484,2]
[351769117,1738782638345,-500.0,0.00014484,2]
[351769119,1738782638355,-500.0,0.00014484,2]
[351769121,1738782638365,-500.0,0.00014484,2]
[351769123,1738782638374,-500.0,0.00014484,2]
[351769125,1738782638383,-515.29609466,0.00014484,2]
[351769127,1738782638393,-501.7663596,0.00014484,2]
[351769129,1738782638402,-37791.57,0.00014484,2]
[351769131,1738782638412,-122573.71,0.00014484,2]
[351769133,1738782638421,-5156.06,0.00014484,2]
[351769135,1738782638430,-5889.5,0.00014484,2]
[351769137,1738782638440,-3152.05,0.00014484,2]
[351769139,1738782638449,-663.3,0.00014484,2]
[351769141,1738782638459,-1716.18,0.00014484,2]
[351769143,1738782638468,-1716.18,0.00014484,2]
[351769145,1738782638477,-1716.18,0.00014484,2]
[351769147,1738782638486,-1716.18,0.00014484,2]
[351769149,1738782638495,-1716.18,0.00014484,2]
[351769151,1738782638505,-1716.18,0.00014484,2]
[351769152,1738782638516,-1716.18,0.00014484,2]
[351769154,1738782638526,-1716.18,0.00014484,2]
[351769156,1738782638535,-1716.18,0.00014484,2]
[351769158,1738782638544,-1716.18,0.00014484,2]
[351769160,1738782638554,-1716.18,0.00014484,2]
[351769162,1738782638563,-1716.18,0.00014484,2]
[351769164,1738782638573,-1716.18,0.00014484,2]
[351769167,1738782638584,-500.0,0.00014484,2]
[351769169,1738782638594,-2589.05,0.00014484,2]
[351769171,1738782638604,-761.99,0.00014484,2]
[351769173,1738782638613,-500.0,0.00014484,2]
[351769175,1738782638623,-493.45439239,0.00014484,2]
[351769177,1738782638633,-581.56,0.00014484,2]
[351769179,1738782638642,-500.0,0.00014484,2]
[351769181,1738782638652,-35857.39,0.00014484,2]
[351769183,1738782638662,-3085.46,0.00014484,2]
[351769185,1738782638672,-500.0,0.00014484,2]
[351769187,1738782638681,-500.0,0.00014485,2]
[351769189,1738782638691,-585.16,0.00014485,2]
[351769190,1738782638699,-500.0,0.00014485,2]
[351769193,1738782638709,-500.0,0.00014485,2]
[351769195,1738782638719,-500.0,0.00014485,2]
[351769197,1738782638728,-500.0,0.00014485,2]
[351769199,1738782638739,-500.0,0.00014485,2]
[351769201,1738782638749,-547.34,0.00014485,2]
[351769203,1738782638759,-503.81475997,0.00014485,2]
[351769204,1738782638769,-808.6,0.00014485,2]
[351769207,1738782638779,-500.0,0.00014485,2]
[351769209,1738782638788,-608.43,0.00014485,2]
[351769210,1738782638798,-1839.59,0.00014485,2]
[351769212,1738782638807,-500.0,0.00014485,2]
[351769214,1738782638816,-500.0,0.00014485,2]
[351769216,1738782638826,-508.67940819,0.00014485,2]
[351769218,1738782638835,-500.0,0.00014485,2]
[351769220,1738782638844,-912.41,0.00014485,2]
[351769222,1738782638854,-901.79,0.00014485,2]
[351769224,1738782638865,-500.0,0.00014485,2]
[351769226,1738782638875,-2459.8,0.00014485,2]
[351769228,1738782638884,-501.44963769,0.00014485,2]
[351769230,1738782638893,-500.0,0.00014485,2]
[351769232,1738782638903,-500.0,0.00014485,2]
[351769234,1738782638912,-510.38444078,0.00014485,2]
[351769236,1738782638921,-505.14936998,0.00014485,2]
[351769238,1738782638931,-500.0,0.00014485,2]
[351769240,1738782638945,-500.0,0.00014485,2]
[351769242,1738782638955,-702.1,0.00014485,2]
[351769244,1738782638964,-500.0,0.00014485,2]
[351769246,1738782638974,-500.0,0.00014485,2]
[351769248,1738782638985,-1122.14,0.00014485,2]
[351769250,1738782638994,-500.0,0.00014485,2]
[351769252,1738782639004,-500.22088784,0.00014485,2]
[351769254,1738782639016,-544.53,0.00014485,2]
[351769256,1738782639026,-500.0,0.00014485,2]
[351769262,1738782639181,-855.46,0.00014485,2]
[351769263,1738782639191,-855.46,0.00014485,2]
[351769264,1738782639201,-855.46,0.00014485,2]
[351769265,1738782639211,-855.46,0.00014485,2]
[351769266,1738782639221,-855.46,0.00014485,2]
[351769267,1738782639231,-855.46,0.00014485,2]
[351769268,1738782639241,-855.59773026,0.00014485,2]
[351769269,1738782639251,-1299.08,0.00014485,2]
[351769270,1738782639262,-500.0,0.00014485,2]
[351769272,1738782639271,-770.26,0.00014485,2]
[351769274,1738782639281,-4098.47,0.00014485,2]
[351769276,1738782639290,-500.0,0.00014485,2]
[351769278,1738782639300,-500.0,0.00014485,2]
[351769280,1738782639309,-500.0,0.00014485,2]
[351769282,1738782639320,-4277.96,0.00014485,2]
[351769284,1738782639330,-705.82,0.00014485,2]
[351769286,1738782639340,-500.0,0.00014485,2]
[351769288,1738782639349,-500.0,0.00014485,2]
[351769290,1738782639359,-500.0,0.00014485,2]
[351769292,1738782639368,-860.21,0.00014485,2]
[351769294,1738782639379,-1527.84,0.00014485,2]
[351769296,1738782639388,-1122.99,0.00014485,2]
[351769298,1738782639398,-501.22673616,0.00014485,2]
[351769300,1738782639407,-500.0,0.00014485,2]
[351769302,1738782639417,-980.72,0.00014485,2]
[351769304,1738782639427,-405.8795387,0.00014485,2]
[351769306,1738782639437,-4162.59,0.00014485,2]
[351769308,1738782639447,-500.0,0.00014485,2]
[351769310,1738782639456,-500.0,0.00014485,2]
[351769312,1738782639466,-500.0,0.00014485,2]
[351769314,1738782639475,-284.45020118,0.00014485,2]
[351769316,1738782639485,-500.0,0.00014485,2]
[351769318,1738782639495,-500.0,0.00014485,2]
[351769320,1738782639504,-1571.52,0.00014485,2]
[351769322,1738782639518,-500.0,0.00014485,2]
[351769324,1738782639528,-1166.48,0.00014485,2]
[351769326,1738782639539,-500.0,0.00014485,2]
[351769328,1738782639551,-1716.18,0.00014485,2]
[351769330,1738782639562,-1716.18,0.00014485,2]
[351769332,1738782639572,-1716.18,0.00014485,2]
[351769334,1738782639582,-1716.18,0.00014485,2]
[351769336,1738782639593,-1716.18,0.00014485,2]
[351769338,1738782639603,-1716.18,0.00014485,2]
[351769340,1738782639613,-1716.25,0.00014485,2]
[351769342,1738782639622,-500.0,0.00014485,2]
[351769344,1738782639632,-500.0,0.00014485,2]
[351769346,1738782639641,-500.0,0.00014485,2]
[351769348,1738782639650,-535.76,0.00014485,2]
[351769350,1738782639660,-708.31,0.00014485,2]
[351769352,1738782639670,-500.0,0.00014485,2]
[351769354,1738782639680,-500.0,0.00014485,2]
[351769356,1738782639689,-717.77,0.00014485,2]
[351769358,1738782639699,-2044.72,0.00014485,2]
[351769360,1738782639708,-580.57,0.00014485,2]
[351769362,1738782639720,-500.0,0.00014485,2]
[351769364,1738782639730,-500.0,0.00014485,2]
[351769366,1738782639739,-561.34,0.00014485,2]
[351769368,1738782639750,-965.95,0.00014485,2]
[351769370,1738782639762,-500.0,0.00014486,2]
[351769372,1738782639772,-500.0,0.00014486,2]
[351769374,1738782639782,-559.41917771,0.00014486,2]
[351769376,1738782639791,-500.0,0.00014486,2]
[351769378,1738782639800,-500.0,0.00014486,2]
[351769380,1738782639811,-500.0,0.00014486,2]
[351769382,1738782639820,-500.0,0.00014486,2]
[351769384,1738782639829,-501.56314382,0.00014486,2]
[351769385,1738782639838,-500.0,0.00014486,2]
[351769387,1738782639848,-500.0,0.00014486,2]
[351769389,1738782639857,-500.0,0.00014486,2]
[351769391,1738782639867,-500.54927778,0.00014486,2]
[351769393,1738782639877,-500.0,0.00014486,2]
[351769395,1738782639887,-500.0,0.00014486,2]
[351769397,1738782639897,-500.0,0.00014486,2]
[351769401,1738782639907,-1140.51,0.00014486,2]
[351769403,1738782639917,-500.0,0.00014486,2]
[351769404,1738782639927,-500.0,0.00014486,2]
[351769406,1738782639937,-500.0,0.00014486,2]
[351769408,1738782639950,-500.0,0.00014486,2]
[351769410,1738782639961,-500.0,0.00014486,2]
[351769413,1738782639972,-500.0,0.00014486,2]
[351769415,1738782639983,-798.28,0.00014486,2]
[351769417,1738782639993,-500.29798453,0.00014486,2]
[351769419,1738782640003,-500.0,0.00014486,2]
[351769421,1738782640015,-500.0,0.00014486,2]
[351769423,1738782640028,-500.0,0.00014486,2]
[351769424,1738782640038,-690.64,0.00014486,2]
[351769427,1738782640048,-500.0,0.00014486,2]
[351769428,1738782640059,-500.0,0.00014486,2]
[351769430,1738782640069,-1208.32,0.00014486,2]
[351769432,1738782640079,-599.9,0.00014486,2]
[351769434,1738782640089,-500.0,0.00014486,2]
[351769436,1738782640098,-500.0,0.00014486,2]
[351769438,1738782640108,-500.0,0.00014486,2]
[351769441,1738782640118,-500.0,0.00014486,2]
[351769442,1738782640128,-500.0,0.00014486,2]
[351769445,1738782640138,-500.0,0.00014486,2]
[351769446,1738782640147,-955.92,0.00014486,2]
[351769448,1738782640157,-500.0,0.00014486,2]
[351769450,1738782640167,-500.0,0.00014486,2]
[351769453,1738782640177,-500.0,0.00014486,2]
[351769454,1738782640186,-500.0,0.00014486,2]
[351769456,1738782640195,-500.0,0.00014486,2]
[351769459,1738782640205,-551.76,0.00014486,2]
[351769460,1738782640214,-500.0,0.00014486,2]
[351769462,1738782640224,-500.0,0.00014486,2]
[351769464,1738782640234,-408.81377868,0.00014486,2]
[351769466,1738782640243,-500.0,0.00014486,2]
[351769468,1738782640252,-1000.0,0.00014486,2]
[351769470,1738782640263,-500.0,0.00014486,2]
[351769472,1738782640273,-500.0,0.00014486,2]
[351769474,1738782640283,-431.65630059,0.00014486,2]
[351769476,1738782640292,-500.0,0.00014486,2]
[351769478,1738782640302,-728.64,0.00014486,2]
[351769480,1738782640312,-500.0,0.00014486,2]
[351769482,1738782640321,-500.0,0.00014486,2]
[351769484,1738782640331,-827.14,0.00014486,2]
[351769486,1738782640340,-504.46962706,0.00014486,2]
[351769488,1738782640350,-500.0,0.00014486,2]
[351769490,1738782640360,-1745.9,0.00014486,2]
[351769492,1738782640369,-500.0,0.00014486,2]
[351769494,1738782640379,-500.0,0.00014486,2]
[351769496,1738782640388,-655.29,0.00014486,2]
[351769498,1738782640398,-500.0,0.00014486,2]
[351769500,1738782640408,-500.0,0.00014486,2]
[351769502,1738782640417,-500.0,0.00014486,2]
[351769504,1738782640427,-500.0,0.00014486,2]
[351769506,1738782640437,-188.0,0.00014486,2]
[351769508,1738782640447,-500.0,0.00014486,2]
[351769510,1738782640457,-502.89722518,0.00014486,2]
[351769512,1738782640467,-500.0,0.00014486,2]
[351769514,1738782640476,-500.0,0.00014486,2]
[351769516,1738782640486,-1597.54,0.00014486,2]
[351769518,1738782640495,-500.0,0.00014486,2]
[351769520,1738782640505,-500.0,0.00014486,2]
[351769522,1738782640523,-500.0,0.00014486,2]
[351769524,1738782640532,-500.0,0.00014486,2]
[351769526,1738782640542,-500.0,0.00014486,2]
[351769528,1738782640552,-500.0,0.00014486,2]
[351769530,1738782640562,-500.0,0.00014486,2]
[351769531,1738782640572,-500.0,0.00014486,2]
[351769532,1738782640581,-500.0,0.00014486,2]
[351769534,1738782640591,-500.0,0.00014486,2]
[351769536,1738782640601,-500.0,0.00014486,2]
[351769538,1738782640611,-510.03950299,0.00014486,2]
[351769541,1738782640621,-500.0,0.00014486,2]
[351769542,1738782640631,-500.0,0.00014486,2]
[351769544,1738782640641,-863.56,0.00014486,2]
[351769546,1738782640651,-502.23862372,0.00014486,2]
[351769548,1738782640661,-500.0,0.00014486,2]
[351769550,1738782640672,-178.0216987,0.00014486,2]
[351769552,1738782640682,-500.0,0.00014486,2]
[351769554,1738782640691,-500.0,0.00014486,2]
[351769555,1738782640701,-500.0,0.00014486,2]
[351769556,1738782640710,-338.4647795,0.00014486,2]
[351769557,1738782640720,-500.0,0.00014486,2]
[351769558,1738782640729,-500.0,0.00014486,2]
[351769559,1738782640739,-500.0,0.00014486,2]
[351769560,1738782640749,-300.0,0.00014486,2]
[351769561,1738782640762,-500.0,0.00014486,2]
[351769562,1738782640772,-1048.16,0.00014486,2]
[351769563,1738782640782,-580.11,0.00014486,2]
[351769564,1738782640795,-500.0,0.00014486,2]
[351769565,1738782640805,-500.0,0.00014486,2]
[351769566,1738782640814,-500.0,0.00014486,2]
[351769567,1738782640824,-500.0,0.00014486,2]
[351769568,1738782640833,-500.0,0.00014486,2]
[351769569,1738782640843,-500.0,0.00014486,2]
[351769570,1738782640853,-500.0,0.00014486,2]
[351769571,1738782640863,-500.0,0.00014486,2]
[351769572,1738782640873,-500.0,0.00014486,2]
[351769573,1738782640884,-500.0,0.00014486,2]
[351769574,1738782640894,-500.0,0.00014486,2]
[351769575,1738782640904,-531.97,0.00014486,2]
[351769576,1738782640913,-500.0,0.00014486,2]
[351769577,1738782640923,-500.0,0.00014486,2]
[351769578,1738782640932,-500.0,0.00014486,2]
[351769579,1738782640946,-500.0,0.00014486,2]
[351769580,1738782640956,-500.0,0.00014486,2]
[351769581,1738782640965,-537.32542156,0.00014486,2]
[351769582,1738782640975,-500.0,0.00014486,2]
[351769583,1738782640985,-500.0,0.00014486,2]
[351769584,1738782640995,-500.0,0.00014486,2]
[351769585,1738782641004,-500.0,0.00014486,2]
[351769586,1738782641016,-500.0,0.00014486,2]
[351769587,1738782641027,-500.0,0.00014486,2]
[351769588,1738782641037,-505.77977213,0.00014486,2]
[351769589,1738782641046,-563.28,0.00014486,2]
[351769590,1738782641057,-500.0,0.00014486,2]
[351769591,1738782641066,-500.0,0.00014486,2]
[351769592,1738782641076,-500.0,0.00014486,2]
[351769593,1738782641085,-340.1928242,0.00014486,2]
[351769594,1738782641095,-1008.57,0.00014486,2]
[351769595,1738782641105,-711.15,0.00014486,2]
[351769596,1738782641115,-500.0,0.00014486,2]
[351769597,1738782641124,-1574.79,0.00014486,2]
[351769598,1738782641133,-500.0,0.00014486,2]
[351769599,1738782641142,-500.0,0.00014486,2]
[351769600,1738782641153,-624.3,0.00014486,2]
[351769601,1738782641162,-500.0,0.00014486,2]
[351769602,1738782641172,-668.93,0.00014486,2]
[351769603,1738782641181,-500.0,0.00014486,2]
[351769604,1738782641190,-500.0,0.00014486,2]
[351769605,1738782641200,-1001.23,0.00014486,2]
[351769606,1738782641209,-500.0,0.00014486,2]
[351769607,1738782641219,-500.0,0.00014486,2]
[351769608,1738782641230,-500.0,0.00014486,2]
[351769609,1738782641239,-685.2,0.00014486,2]
[351769610,1738782641248,-978.41,0.00014486,2]
[351769611,1738782641259,-500.0,0.00014486,2]
[351769613,1738782641268,-549.77759903,0.00014486,2]
[351769615,1738782641278,-771.32,0.00014486,2]
[351769617,1738782641287,-500.0,0.00014486,2]
[351769619,1738782641296,-1000.0,0.00014486,2]
[351769621,1738782641306,-500.0,0.00014486,2]
[351769623,1738782641316,-500.0,0.00014486,2]
[351769625,1738782641325,-500.0,0.00014486,2]
[351769627,1738782641335,-500.0,0.00014486,2]